{"text_format":"3","workbook":"xlsx","n_sheets":1,"sheets":["Raport de cheltuieli"],"not_rendered":{"images":2,"defined_names":12},"read":"whole","date_system":"1900"}

{"sheet":"Raport de cheltuieli","index":0,"n_rows":24,"n_cols":13,"rows_kept":24,"merged":[[3,2,3,3],[3,5,3,6],[3,9,3,10],[4,2,4,3],[4,5,4,6],[4,9,4,10],[5,2,5,3],[5,5,5,6],[5,9,5,10],[6,2,6,3],[6,5,6,6],[6,9,6,10],[7,9,7,10]]}
[null,"RAPORT DE CHELTUIELI"]
[null,"CONTOSO, LTD"]
[null,"Str. Mare 123, Brașov, BV 12345"]
[null,"TELEFON",4255550121,null,"NUME","Crina Codreanu",null,null,"SCOP","Seminar anual de vânzări",null,"RATĂ TRANSPORT",{"v":1.5,"d":"1.50 lei/km"}]
[null,"FAX",4255550122,null,"DEPARTAMENT","Vânzări",null,null,"DEBUT",{"$f":"IFERROR(MIN(Cheltuieli[DATA]),\"\")","v":"2018-06-04"},null,"RATĂ MESE",{"v":90,"d":"90.00 lei/zi"}]
[null,"E-MAIL","info@contoso.com",null,"FUNCȚIA","Director general",null,null,"FINAL",{"$f":"IFERROR(MAX(Cheltuieli[DATA]),\"\")","v":"2018-07-04"},null,"RATĂ HOTEL",{"v":600,"d":"600.00 lei/noapte"}]
[null,"WEB","www.contoso.com",null,"MANAGER","Iustin Munteanu",null,null,"PREGĂTIT DE","Crina Codreanu",null,"RATĂ TELEFON",{"v":30,"d":"30.00 lei/zi"}]
[{"$nulls":8},"APROBAT DE","Iustin Munteanu",null,"DIVERSE RATĂ",{"v":150,"d":"150.00 lei/zi"}]
[]
[null,"DATA","CONT","DESCRIERE","HOTEL","TRANSPORT","MESE","TELEFON","DIVERSE","ODOMETRU \nÎNCEPUT","ODOMETRU \nSFÂRȘIT","DISTANȚA PARCURSĂ \nTOTAL","TOTAL "]
[null,{"$f":"TODAY()","v":"2018-06-04"},"Vânzări","Distanța parcursă",{"$nulls":4},{"v":150,"d":"150.00 lei"},{"v":11378.5,"d":"11,378.5 km"},{"v":11456.2,"d":"11,456.2 km"},{"$f":"IF(COUNTA(Cheltuieli[[#This Row],[ODOMETRU \nÎNCEPUT]:[ODOMETRU \nSFÂRȘIT]])=2,(Cheltuieli[[#This Row],[ODOMETRU \nSFÂRȘIT]]-Cheltuieli[[#This Row],[ODOMETRU \nÎNCEPUT]])*RatăTransport,\"\")","v":{"v":116.55000000000109,"d":"116.55 lei"}},{"$f":"IF(COUNTA(Cheltuieli[[#This Row],[DATA]:[ODOMETRU \nSFÂRȘIT]])=0,\"\",SUM(Cheltuieli[[#This Row],[HOTEL]:[TRANSPORT]],Cheltuieli[[#This Row],[MESE]:[DIVERSE]],((Cheltuieli[[#This Row],[ODOMETRU \nSFÂRȘIT]]-Cheltuieli[[#This Row],[ODOMETRU \nÎNCEPUT]])*(RatăTransport))))","v":{"v":266.5500000000011,"d":"266.55 lei"}}]
[null,{"$f":"TODAY()+30","v":"2018-07-04"},"Vânzări","Conferință",{"v":1335,"d":"1,335.00 lei"},{"v":675,"d":"675.00 lei"},{"v":60,"d":"60.00 lei"},null,{"v":15,"d":"15.00 lei"},{"v":11500,"d":"11,500.0 km"},{"v":11560,"d":"11,560.0 km"},{"$f":"IF(COUNTA(Cheltuieli[[#This Row],[ODOMETRU \nÎNCEPUT]:[ODOMETRU \nSFÂRȘIT]])=2,(Cheltuieli[[#This Row],[ODOMETRU \nSFÂRȘIT]]-Cheltuieli[[#This Row],[ODOMETRU \nÎNCEPUT]])*RatăTransport,\"\")","v":{"v":90,"d":"90.00 lei"}},{"$f":"IF(COUNTA(Cheltuieli[[#This Row],[DATA]:[ODOMETRU \nSFÂRȘIT]])=0,\"\",SUM(Cheltuieli[[#This Row],[HOTEL]:[TRANSPORT]],Cheltuieli[[#This Row],[MESE]:[DIVERSE]],((Cheltuieli[[#This Row],[ODOMETRU \nSFÂRȘIT]]-Cheltuieli[[#This Row],[ODOMETRU \nÎNCEPUT]])*(RatăTransport))))","v":{"v":2175,"d":"2,175.00 lei"}}]
[{"$nulls":11},{"$f":"IF(COUNTA(Cheltuieli[[#This Row],[ODOMETRU \nÎNCEPUT]:[ODOMETRU \nSFÂRȘIT]])=2,(Cheltuieli[[#This Row],[ODOMETRU \nSFÂRȘIT]]-Cheltuieli[[#This Row],[ODOMETRU \nÎNCEPUT]])*RatăTransport,\"\")","v":""},{"$f":"IF(COUNTA(Cheltuieli[[#This Row],[DATA]:[ODOMETRU \nSFÂRȘIT]])=0,\"\",SUM(Cheltuieli[[#This Row],[HOTEL]:[TRANSPORT]],Cheltuieli[[#This Row],[MESE]:[DIVERSE]],((Cheltuieli[[#This Row],[ODOMETRU \nSFÂRȘIT]]-Cheltuieli[[#This Row],[ODOMETRU \nÎNCEPUT]])*(RatăTransport))))","v":""}]
[{"$nulls":11},{"$f":"IF(COUNTA(Cheltuieli[[#This Row],[ODOMETRU \nÎNCEPUT]:[ODOMETRU \nSFÂRȘIT]])=2,(Cheltuieli[[#This Row],[ODOMETRU \nSFÂRȘIT]]-Cheltuieli[[#This Row],[ODOMETRU \nÎNCEPUT]])*RatăTransport,\"\")","v":""},{"$f":"IF(COUNTA(Cheltuieli[[#This Row],[DATA]:[ODOMETRU \nSFÂRȘIT]])=0,\"\",SUM(Cheltuieli[[#This Row],[HOTEL]:[TRANSPORT]],Cheltuieli[[#This Row],[MESE]:[DIVERSE]],((Cheltuieli[[#This Row],[ODOMETRU \nSFÂRȘIT]]-Cheltuieli[[#This Row],[ODOMETRU \nÎNCEPUT]])*(RatăTransport))))","v":""}]
[{"$nulls":11},{"$f":"IF(COUNTA(Cheltuieli[[#This Row],[ODOMETRU \nÎNCEPUT]:[ODOMETRU \nSFÂRȘIT]])=2,(Cheltuieli[[#This Row],[ODOMETRU \nSFÂRȘIT]]-Cheltuieli[[#This Row],[ODOMETRU \nÎNCEPUT]])*RatăTransport,\"\")","v":""},{"$f":"IF(COUNTA(Cheltuieli[[#This Row],[DATA]:[ODOMETRU \nSFÂRȘIT]])=0,\"\",SUM(Cheltuieli[[#This Row],[HOTEL]:[TRANSPORT]],Cheltuieli[[#This Row],[MESE]:[DIVERSE]],((Cheltuieli[[#This Row],[ODOMETRU \nSFÂRȘIT]]-Cheltuieli[[#This Row],[ODOMETRU \nÎNCEPUT]])*(RatăTransport))))","v":""}]
[{"$nulls":11},{"$f":"IF(COUNTA(Cheltuieli[[#This Row],[ODOMETRU \nÎNCEPUT]:[ODOMETRU \nSFÂRȘIT]])=2,(Cheltuieli[[#This Row],[ODOMETRU \nSFÂRȘIT]]-Cheltuieli[[#This Row],[ODOMETRU \nÎNCEPUT]])*RatăTransport,\"\")","v":""},{"$f":"IF(COUNTA(Cheltuieli[[#This Row],[DATA]:[ODOMETRU \nSFÂRȘIT]])=0,\"\",SUM(Cheltuieli[[#This Row],[HOTEL]:[TRANSPORT]],Cheltuieli[[#This Row],[MESE]:[DIVERSE]],((Cheltuieli[[#This Row],[ODOMETRU \nSFÂRȘIT]]-Cheltuieli[[#This Row],[ODOMETRU \nÎNCEPUT]])*(RatăTransport))))","v":""}]
[{"$nulls":11},{"$f":"IF(COUNTA(Cheltuieli[[#This Row],[ODOMETRU \nÎNCEPUT]:[ODOMETRU \nSFÂRȘIT]])=2,(Cheltuieli[[#This Row],[ODOMETRU \nSFÂRȘIT]]-Cheltuieli[[#This Row],[ODOMETRU \nÎNCEPUT]])*RatăTransport,\"\")","v":""},{"$f":"IF(COUNTA(Cheltuieli[[#This Row],[DATA]:[ODOMETRU \nSFÂRȘIT]])=0,\"\",SUM(Cheltuieli[[#This Row],[HOTEL]:[TRANSPORT]],Cheltuieli[[#This Row],[MESE]:[DIVERSE]],((Cheltuieli[[#This Row],[ODOMETRU \nSFÂRȘIT]]-Cheltuieli[[#This Row],[ODOMETRU \nÎNCEPUT]])*(RatăTransport))))","v":""}]
[{"$nulls":11},{"$f":"IF(COUNTA(Cheltuieli[[#This Row],[ODOMETRU \nÎNCEPUT]:[ODOMETRU \nSFÂRȘIT]])=2,(Cheltuieli[[#This Row],[ODOMETRU \nSFÂRȘIT]]-Cheltuieli[[#This Row],[ODOMETRU \nÎNCEPUT]])*RatăTransport,\"\")","v":""},{"$f":"IF(COUNTA(Cheltuieli[[#This Row],[DATA]:[ODOMETRU \nSFÂRȘIT]])=0,\"\",SUM(Cheltuieli[[#This Row],[HOTEL]:[TRANSPORT]],Cheltuieli[[#This Row],[MESE]:[DIVERSE]],((Cheltuieli[[#This Row],[ODOMETRU \nSFÂRȘIT]]-Cheltuieli[[#This Row],[ODOMETRU \nÎNCEPUT]])*(RatăTransport))))","v":""}]
[{"$nulls":11},{"$f":"IF(COUNTA(Cheltuieli[[#This Row],[ODOMETRU \nÎNCEPUT]:[ODOMETRU \nSFÂRȘIT]])=2,(Cheltuieli[[#This Row],[ODOMETRU \nSFÂRȘIT]]-Cheltuieli[[#This Row],[ODOMETRU \nÎNCEPUT]])*RatăTransport,\"\")","v":""},{"$f":"IF(COUNTA(Cheltuieli[[#This Row],[DATA]:[ODOMETRU \nSFÂRȘIT]])=0,\"\",SUM(Cheltuieli[[#This Row],[HOTEL]:[TRANSPORT]],Cheltuieli[[#This Row],[MESE]:[DIVERSE]],((Cheltuieli[[#This Row],[ODOMETRU \nSFÂRȘIT]]-Cheltuieli[[#This Row],[ODOMETRU \nÎNCEPUT]])*(RatăTransport))))","v":""}]
[{"$nulls":11},{"$f":"IF(COUNTA(Cheltuieli[[#This Row],[ODOMETRU \nÎNCEPUT]:[ODOMETRU \nSFÂRȘIT]])=2,(Cheltuieli[[#This Row],[ODOMETRU \nSFÂRȘIT]]-Cheltuieli[[#This Row],[ODOMETRU \nÎNCEPUT]])*RatăTransport,\"\")","v":""},{"$f":"IF(COUNTA(Cheltuieli[[#This Row],[DATA]:[ODOMETRU \nSFÂRȘIT]])=0,\"\",SUM(Cheltuieli[[#This Row],[HOTEL]:[TRANSPORT]],Cheltuieli[[#This Row],[MESE]:[DIVERSE]],((Cheltuieli[[#This Row],[ODOMETRU \nSFÂRȘIT]]-Cheltuieli[[#This Row],[ODOMETRU \nÎNCEPUT]])*(RatăTransport))))","v":""}]
[{"$nulls":11},{"$f":"IF(COUNTA(Cheltuieli[[#This Row],[ODOMETRU \nÎNCEPUT]:[ODOMETRU \nSFÂRȘIT]])=2,(Cheltuieli[[#This Row],[ODOMETRU \nSFÂRȘIT]]-Cheltuieli[[#This Row],[ODOMETRU \nÎNCEPUT]])*RatăTransport,\"\")","v":""},{"$f":"IF(COUNTA(Cheltuieli[[#This Row],[DATA]:[ODOMETRU \nSFÂRȘIT]])=0,\"\",SUM(Cheltuieli[[#This Row],[HOTEL]:[TRANSPORT]],Cheltuieli[[#This Row],[MESE]:[DIVERSE]],((Cheltuieli[[#This Row],[ODOMETRU \nSFÂRȘIT]]-Cheltuieli[[#This Row],[ODOMETRU \nÎNCEPUT]])*(RatăTransport))))","v":""}]
[null,"TOTALURI",null,null,{"$f":"SUBTOTAL(109,Cheltuieli[HOTEL])","v":{"v":1335,"d":"1,335.00 lei"}},{"$f":"SUBTOTAL(109,Cheltuieli[TRANSPORT])","v":{"v":675,"d":"675.00 lei"}},{"$f":"SUBTOTAL(109,Cheltuieli[MESE])","v":{"v":60,"d":"60.00 lei"}},{"$f":"SUBTOTAL(109,Cheltuieli[TELEFON])","v":0},{"$f":"SUBTOTAL(109,Cheltuieli[DIVERSE])","v":{"v":165,"d":"165.00 lei"}},{"$nulls":3},{"$f":"SUBTOTAL(109,Cheltuieli[[TOTAL ]])","v":{"v":2441.550000000001,"d":"2,441.55 lei"}}]
[{"$nulls":11},"AVANSURI",{"v":0,"d":"0.00 lei"}]
[{"$nulls":11},"TOTAL",{"$f":"Cheltuieli[[#Totals],[TOTAL ]]-Avansuri","v":{"v":2441.550000000001,"d":"2,441.55 lei"}}]